bitfinex-derivatives/quotes_BTCF0:USTF0_20251109
["timestamp","ask_amount","ask_price","bid_price","bid_amount"]
[1762714726898,0.25503,104540.0,104530.0,1.18780259]
[1762714727194,0.25503,104540.0,104530.0,1.3130352]
[1762714727498,0.1402,104540.0,104530.0,1.38829001]
[1762714727796,0.07223,104540.0,104530.0,1.38829001]
[1762714727997,0.30362,104540.0,104530.0,1.0738752]
[1762714728191,0.30362,104540.0,104530.0,0.4417281]
[1762714728192,0.70268,104540.0,104530.0,0.4417281]
[1762714728490,0.798359,104540.0,104530.0,0.005]
[1762714728697,0.70268,104540.0,104530.0,0.1006882]
[1762714729082,0.798359,104540.0,104530.0,0.005]
[1762714729387,0.798359,104540.0,104530.0,0.1006882]
[1762714729788,0.34188,104540.0,104530.0,0.1006882]
[1762714730299,0.3270782,104530.0,104520.0,0.05059621]
[1762714730595,0.29756,104500.0,104490.0,0.42847786]
[1762714730796,0.7923356,104500.0,104490.0,0.06767786]
[1762714730997,0.7923356,104500.0,104490.0,0.34172]
[1762714731700,0.3271148,104490.0,104480.0,0.50523532]
[1762714731998,0.26965,104490.0,104480.0,0.50523532]
[1762714732798,0.27365,104490.0,104480.0,0.50523532]
[1762714733100,0.24339,104490.0,104480.0,0.50623532]
[1762714733297,0.28165,104490.0,104480.0,0.50623532]
[1762714735696,0.7381748,104490.0,104480.0,0.41050132]
[1762714736289,0.64245,104490.0,104480.0,0.50623532]
[1762714740598,0.7381748,104490.0,104480.0,0.06882132]
[1762714740799,0.211354,104480.0,104470.0,0.34103041]
[1762714741003,0.69922,104480.0,104470.0,7.041e-05]
[1762714741194,0.69922,104480.0,104470.0,0.09581361]
[1762714741788,0.70222,104480.0,104470.0,0.09581361]
[1762714741997,0.70222,104480.0,104470.0,0.09781361]
[1762714742403,0.69922,104480.0,104470.0,0.09981361]
[1762714742701,0.794954,104480.0,104470.0,0.00407041]
[1762714743097,0.30016,104480.0,104470.0,0.58584612]
[1762714744103,0.30016,104480.0,104470.0,0.68156279]
[1762714746201,0.00014346,104490.0,104480.0,0.0957339]
[1762714746503,0.00014346,104490.0,104480.0,0.92232651]
[1762714746504,0.23347346,104490.0,104480.0,0.92232651]
[1762714746701,0.11576346,104490.0,104480.0,0.92232651]
[1762714747001,0.00014346,104490.0,104480.0,1.01804318]
[1762714747604,0.06617,104520.0,104490.0,0.0957248]
[1762714747903,0.2995,104520.0,104510.0,0.58173911]
[1762714748501,0.06617,104520.0,104510.0,0.58173911]
[1762714748703,0.06617,104520.0,104510.0,0.67742831]
[1762714749201,0.06717,104520.0,104510.0,0.68442831]
[1762714749411,0.06717,104520.0,104510.0,0.92362831]
[1762714749598,0.06717,104520.0,104510.0,0.68442831]
[1762714749800,0.06717,104520.0,104510.0,0.92362831]
[1762714750199,0.00014346,104530.0,104510.0,0.92362831]
[1762714750400,0.00014346,104530.0,104520.0,1.16160991]
[1762714750602,0.27173346,104530.0,104520.0,0.50712149]
[1762714750907,0.63253346,104530.0,104520.0,0.05062419]
[1762714751104,0.72822156,104530.0,104520.0,0.37448377]
[1762714751409,0.63353346,104530.0,104520.0,0.37448377]
[1762714751896,0.63353346,104530.0,104520.0,0.47718107]
[1762714752102,0.63253346,104530.0,104520.0,0.47718107]
[1762714752309,0.63353346,104530.0,104520.0,0.48518107]
[1762714753105,0.59527346,104530.0,104520.0,0.48518107]
[1762714753307,0.63353346,104530.0,104520.0,0.48518107]
[1762714753905,0.72922156,104530.0,104520.0,0.38948377]
[1762714754206,0.63353346,104530.0,104520.0,0.53580526]
[1762714755211,0.63353346,104530.0,104520.0,0.50204149]
[1762714757511,0.23447346,104530.0,104520.0,1.08374499]
[1762714757810,0.23447346,104530.0,104520.0,0.9880741]
[1762714758007,0.27273346,104530.0,104520.0,0.93744991]
[1762714759110,0.07123,104540.0,104530.0,0.0956882]
[1762714759308,0.30456,104540.0,104530.0,0.92200081]
[1762714759708,0.30456,104540.0,104530.0,1.2568317]
[1762714759917,0.07123,104540.0,104530.0,1.2568317]
[1762714760215,0.07123,104540.0,104530.0,1.0176717]
[1762714760415,0.07123,104540.0,104530.0,1.2648317]
[1762714760614,0.23347104,104550.0,104540.0,0.095679]
[1762714760915,0.23347104,104550.0,104540.0,0.97411928]
[1762714761313,0.23347104,104550.0,104540.0,1.06977186]
[1762714762017,0.23347104,104550.0,104540.0,1.07377186]
[1762714762622,0.23347104,104550.0,104540.0,0.95053925]
[1762714762814,0.23347104,104550.0,104540.0,1.07553186]
[1762714763021,4e-08,104550.0,104540.0,1.07553186]
[1762714764414,0.23333004,104550.0,104540.0,0.73401186]
[1762714764607,0.23333004,104550.0,104540.0,1.07545186]
[1762714764806,4e-08,104550.0,104540.0,1.07545186]
[1762714765007,0.23333004,104550.0,104540.0,0.8038791]
[1762714765214,0.23333004,104550.0,104540.0,0.96283688]
[1762714765509,0.23333004,104550.0,104540.0,0.98111938]
[1762714765710,0.23333004,104550.0,104540.0,0.93047171]
[1762714765912,0.59413004,104550.0,104540.0,0.38247569]
[1762714766113,0.68979994,104550.0,104540.0,0.38247569]
[1762714767114,0.59413004,104550.0,104540.0,0.47815479]
[1762714767315,0.23333004,104550.0,104540.0,1.05983998]
[1762714767516,0.23333004,104550.0,104540.0,1.13449063]
[1762714767817,0.23333004,104550.0,104540.0,1.05983998]
[1762714770118,0.23333004,104550.0,104540.0,0.93460737]
[1762714770419,0.59413004,104550.0,104540.0,0.47815479]
[1762714771420,0.68979984,104550.0,104540.0,0.03971569]
[1762714771729,0.83300374,104550.0,104540.0,0.38239569]
[1762714772121,0.83418702,104550.0,104540.0,0.38239569]
[1762714772635,0.23451332,104550.0,104540.0,1.02765775]
[1762714772827,0.23451332,104550.0,104540.0,1.0783145]
[1762714773019,0.23451332,104550.0,104540.0,1.04458973]
[1762714773219,0.23451332,104550.0,104540.0,1.14024231]
[1762714773525,0.00118332,104550.0,104540.0,1.14024231]
[1762714773726,0.00118332,104550.0,104540.0,1.37936231]
[1762714774120,0.00118332,104550.0,104540.0,1.14024231]
[1762714774325,0.00118332,104550.0,104540.0,1.08959464]
[1762714774524,0.00118332,104550.0,104540.0,1.32871464]
[1762714774829,0.00118332,104550.0,104540.0,1.08959464]
[1762714775030,0.00118332,104550.0,104540.0,1.32871464]
[1762714775230,0.00118332,104550.0,104540.0,1.08959464]
[1762714775627,0.00118332,104550.0,104540.0,1.32871464]
[1762714776126,0.00118332,104550.0,104540.0,1.08759464]
[1762714776319,0.00118332,104550.0,104540.0,1.09159464]
[1762714776833,0.00118332,104550.0,104540.0,1.09259464]
[1762714777222,0.21335332,104550.0,104540.0,1.16981682]
[1762714777425,0.21335332,104550.0,104540.0,1.22044214]
[1762714780438,0.21335332,104550.0,104540.0,1.03165898]
[1762714781230,0.21335332,104550.0,104540.0,0.85862422]
[1762714781628,0.21335332,104550.0,104540.0,0.51610422]
[1762714781828,0.21335332,104550.0,104540.0,0.85862422]
[1762714782028,0.30902312,104550.0,104540.0,0.76294532]
[1762714782237,0.30902312,104550.0,104540.0,0.85862432]
[1762714782832,0.21335332,104550.0,104540.0,0.85862432]
[1762714784539,0.66982312,104550.0,104540.0,0.05962532]
[1762714784837,0.66982312,104550.0,104540.0,0.49750432]
[1762714785139,0.66982312,104550.0,104540.0,0.40182532]
[1762714786140,0.66982312,104550.0,104540.0,0.49750432]
[1762714786643,0.66982312,104550.0,104540.0,0.40182532]
[1762714787045,0.57415332,104550.0,104540.0,0.49750432]
[1762714789934,0.21335332,104550.0,104540.0,0.49750432]
[1762714794348,0.21335332,104550.0,104540.0,0.446879]
[1762714795047,0.21335332,104550.0,104540.0,0.90333158]
[1762714795344,0.10083943,104620.0,104590.0,0.0956332]
[1762714795546,0.18896,104610.0,104600.0,0.02533428]
[1762714795744,0.24492,104600.0,104590.0,0.03377904]
[1762714796046,0.24492,104600.0,104580.0,0.38197904]
[1762714796243,0.3499823,104580.0,104570.0,0.37190917]
[1762714796444,0.3499823,104580.0,104560.0,0.05066856]
[1762714796445,0.1979,104570.0,104560.0,0.05066856]
[1762714796946,0.25434,104560.0,104550.0,0.85625034]
[1762714797943,0.25434,104560.0,104550.0,0.76058604]
[1762714798245,0.25434,104560.0,104550.0,0.41158604]
[1762714798551,0.25434,104560.0,104550.0,0.50725574]
[1762714799248,0.25434,104560.0,104550.0,0.51625574]
[1762714799444,0.25434,104560.0,104550.0,0.55203574]
[1762714799650,0.25434,104560.0,104550.0,0.58781574]
[1762714799951,0.25434,104560.0,104550.0,0.58281574]
[1762714800147,0.25434,104560.0,104550.0,0.58781574]
[1762714800338,0.25434,104560.0,104550.0,0.42058604]
[1762714800544,0.25434,104560.0,104550.0,0.51625584]
[1762714800745,0.25434,104560.0,104550.0,0.58781584]
[1762714801636,0.25434,104560.0,104550.0,0.776599]
[1762714801835,0.05644,104560.0,104550.0,0.72593044]
[1762714802048,0.05644,104580.0,104560.0,0.07156]
[1762714802049,0.1979,104570.0,104560.0,0.07156]
[1762714802245,0.1979,104570.0,104560.0,0.78068]
[1762714802550,0.1979,104570.0,104560.0,0.8763406]
[1762714802745,0.1979,104570.0,104560.0,0.92697277]
[1762714803142,0.1979,104570.0,104560.0,0.92997277]
[1762714803449,0.1979,104570.0,104560.0,0.93297277]
[1762714804743,0.1979,104570.0,104560.0,0.43836]
[1762714804947,0.1979,104570.0,104560.0,0.84268]
[1762714805144,0.17493384,104570.0,104560.0,0.9383406]
[1762714805349,0.07360384,104570.0,104560.0,0.9383406]
[1762714805551,0.4999447,104600.0,104560.0,0.9383406]
[1762714805849,0.84213801,104600.0,104590.0,0.3608]
[1762714806046,0.04213801,104600.0,104590.0,0.3608]
[1762714806248,0.13776271,104600.0,104590.0,0.3608]
[1762714806747,0.0976247,104600.0,104590.0,0.3608]
[1762714806947,0.14555959,104600.0,104590.0,0.6468131]
[1762714807150,0.24118359,104600.0,104590.0,0.6468131]
[1762714807350,0.24118359,104600.0,104590.0,0.57648482]
[1762714807838,0.24118359,104600.0,104590.0,0.67211792]
[1762714808044,0.14355959,104600.0,104590.0,0.67211792]
[1762714808346,0.003,104600.0,104590.0,0.86090108]
[1762714808940,0.00886995,104630.0,104620.0,0.24666]
[1762714809143,0.1464423,104660.0,104650.0,0.19038]
[1762714809347,0.0955783,104650.0,104640.0,0.41722346]
[1762714809550,0.0955783,104650.0,104640.0,0.00014346]
[1762714809551,0.60009315,104650.0,104640.0,0.00014346]
[1762714809749,1.0563783,104650.0,104640.0,0.00014346]
[1762714809951,1.20009315,104650.0,104640.0,0.00014346]
[1762714810145,1.20009315,104650.0,104630.0,0.3608]
[1762714810349,0.0955966,104630.0,104620.0,0.60746]
[1762714810540,1.16516101,104660.0,104620.0,0.60746]
[1762714810746,0.0955783,104650.0,104640.0,0.3608]
[1762714810950,0.58631512,104650.0,104640.0,0.3608]
[1762714811252,0.4437783,104650.0,104640.0,0.3608]
[1762714811450,0.23829923,104650.0,104640.0,0.41708]
[1762714811656,0.83829923,104650.0,104640.0,0.3608]
[1762714812155,0.83929923,104650.0,104640.0,0.3608]
[1762714812356,0.23929923,104650.0,104640.0,0.96826]
[1762714812550,0.23929923,104650.0,104640.0,0.77788]
[1762714813053,0.23929923,104650.0,104640.0,0.96826]
[1762714813253,0.23929923,104650.0,104640.0,0.87151]
[1762714813557,0.23929923,104650.0,104640.0,0.77788]
[1762714813742,0.23929923,104650.0,104640.0,1.0638475]
[1762714814547,0.23929923,104650.0,104640.0,1.08912095]
[1762714815749,0.18878316,104680.0,104650.0,0.09363]
[1762714815948,0.0955605,104670.0,104660.0,0.41708]
[1762714816148,0.23862736,104670.0,104660.0,0.41708]
[1762714816454,0.095544,104690.0,104680.0,0.05628]
[1762714816655,0.095544,104690.0,104680.0,0.3608]
[1762714816844,0.23851086,104690.0,104680.0,0.41708]
[1762714817248,0.14296686,104690.0,104680.0,1.0638109]
[1762714817453,0.23850866,104690.0,104680.0,0.96826]
[1762714817663,0.14296686,104690.0,104680.0,1.0638109]
[1762714817956,0.24550866,104690.0,104680.0,0.96826]
[1762714818660,0.84850866,104690.0,104680.0,0.3608]
[1762714818853,0.095551,104680.0,104670.0,0.00014346]
[1762714819160,0.60031232,104680.0,104670.0,0.00014346]
[1762714819460,0.94923232,104680.0,104670.0,0.00014346]
[1762714820046,0.58843232,104680.0,104670.0,0.36094346]
[1762714820660,0.23951232,104680.0,104670.0,0.55132346]
[1762714820958,0.24051232,104680.0,104670.0,0.55132346]
[1762714821464,0.24051232,104680.0,104670.0,0.36094346]
[1762714821650,0.23951232,104680.0,104670.0,0.36394346]
[1762714821852,0.23951232,104680.0,104670.0,0.36594346]
[1762714822262,0.23951232,104680.0,104670.0,0.36394346]
[1762714822563,0.23951232,104680.0,104670.0,0.36694346]
[1762714822952,0.23951232,104680.0,104670.0,0.36394346]
[1762714823157,0.23951232,104680.0,104670.0,0.36694346]
[1762714823358,0.60031232,104680.0,104670.0,0.00614346]
[1762714823862,0.60031232,104680.0,104670.0,0.00314346]
[1762714824062,0.60031232,104680.0,104670.0,0.00514346]
[1762714824652,0.23951232,104680.0,104670.0,0.55632346]
[1762714825257,0.14396132,104680.0,104670.0,0.65188356]
[1762714825464,0.23951222,104680.0,104670.0,0.55632346]
[1762714826155,0.23951222,104680.0,104670.0,0.65188356]
[1762714827962,0.23951222,104680.0,104670.0,0.55632346]
[1762714828361,0.23951222,104680.0,104670.0,0.65188356]
[1762714828656,0.23951222,104680.0,104670.0,0.55632346]
[1762714829563,0.23951222,104680.0,104670.0,0.65188356]
[1762714829861,0.23951222,104680.0,104670.0,0.55632346]
[1762714831767,0.36438819,104680.0,104670.0,0.36594346]
[1762714832061,0.36438819,104680.0,104670.0,0.00514346]
[1762714832062,0.72518819,104680.0,104670.0,0.00514346]
[1762714832261,0.0955692,104660.0,104650.0,0.60977]
[1762714832563,0.23910206,104660.0,104650.0,0.60977]
[1762714832966,0.23910206,104660.0,104650.0,0.7053483]
[1762714833465,0.23910206,104660.0,104650.0,0.7123483]
[1762714833665,0.23910206,104660.0,104650.0,0.7173483]
[1762714836766,0.23910206,104660.0,104650.0,0.3728]
[1762714836959,0.72477803,104660.0,104650.0,0.012]
[1762714837167,0.72477803,104660.0,104650.0,0.26097]
[1762714837168,0.23910206,104660.0,104650.0,0.26097]
[1762714837464,0.23910206,104660.0,104650.0,0.62177]
[1762714837666,0.0955875,104640.0,104630.0,2e-08]
[1762714837866,0.0956149,104610.0,104600.0,0.05628007]
[1762714838076,0.0956332,104590.0,104580.0,0.41424467]
[1762714838259,0.22050917,104590.0,104580.0,0.41424467]
[1762714838461,0.58187205,104590.0,104580.0,0.34673]
[1762714838664,0.94267205,104590.0,104580.0,0.09776]
[1762714838967,0.94275052,104590.0,104580.0,0.09776]
[1762714839865,0.94275052,104590.0,104580.0,1e-07]
[1762714840659,0.81787455,104590.0,104580.0,1e-07]
[1762714840859,0.0956423,104580.0,104570.0,0.00014346]
[1762714841058,0.4564423,104580.0,104570.0,0.24911346]
[1762714841264,0.59952825,104580.0,104570.0,0.31662813]
[1762714841472,0.59952825,104580.0,104570.0,0.24911346]
[1762714841872,0.72440422,104580.0,104570.0,0.24911346]
[1762714842072,7.847e-05,104590.0,104580.0,0.4423724]
[1762714842260,7.847e-05,104590.0,104580.0,1.47068707]
[1762714842570,0.00014346,104600.0,104590.0,0.3446032]
[1762714842772,0.00014346,104600.0,104590.0,1.3019032]
[1762714842973,0.7178707,104630.0,104620.0,0.24897]
[1762714843172,0.0956117,104620.0,104600.0,0.5541838]
[1762714843364,0.50073187,104620.0,104610.0,0.3445849]
[1762714843561,0.35713212,104620.0,104610.0,0.3445849]
[1762714843765,0.50078229,104620.0,104610.0,0.24897]
[1762714844362,0.50078229,104620.0,104610.0,0.3445849]
[1762714844863,0.50078229,104620.0,104610.0,0.24997]
[1762714845062,0.50178229,104620.0,104610.0,0.24997]
[1762714848571,0.72841826,104620.0,104610.0,0.001]
[1762714848772,1.08921826,104620.0,104610.0,0.001]
[1762714850273,0.63037656,104620.0,104610.0,0.33588]
[1762714850481,0.14470059,104620.0,104610.0,0.7922949]
[1762714850672,0.00105042,104620.0,104610.0,0.7922949]
[1762714850872,4.2e-07,104620.0,104610.0,1.51717087]
[1762714851275,4.2e-07,104620.0,104610.0,1.3922949]
[1762714851579,4.2e-07,104620.0,104610.0,1.51717087]
[1762714851872,4.2e-07,104620.0,104610.0,1.3922949]
[1762714852784,4.2e-07,104620.0,104610.0,1.51717087]
[1762714853282,0.7942601,104670.0,104660.0,0.33488]
[1762714853780,0.9381307,104670.0,104660.0,0.43559]
[1762714853976,0.6738906,104670.0,104660.0,0.5311592]
[1762714854170,0.1438706,104670.0,104660.0,0.8919592]
[1762714854371,0.1528706,104670.0,104660.0,0.8929592]
[1762714854582,0.2534307,104670.0,104660.0,0.8929592]
[1762714854778,0.014,104670.0,104660.0,0.8929592]
[1762714854983,0.014,104670.0,104660.0,1.01783517]
[1762714855279,0.4334368,104700.0,104690.0,0.33488]
[1762714855682,0.57701172,104700.0,104690.0,0.33488]
[1762714856276,0.23910762,104700.0,104690.0,0.33488]
[1762714856476,0.14357492,104700.0,104690.0,0.33488]
[1762714856674,0.10250416,104710.0,104700.0,0.41897]
[1762714856872,0.26010416,104710.0,104700.0,0.41897]
[1762714857080,0.40402016,104710.0,104700.0,0.41897]
[1762714857387,0.15089656,104710.0,104700.0,0.8753027]
[1762714857684,0.24642016,104710.0,104700.0,0.8753027]
[1762714857871,0.00798056,104710.0,104700.0,0.8753027]
[1762714858282,0.00798056,104710.0,104700.0,0.77977]
[1762714858486,0.42339416,104710.0,104700.0,0.6821]
[1762714858780,0.4154227,104700.0,104690.0,0.6821]
[1762714859284,0.55806019,104700.0,104690.0,0.6821]
[1762714860280,0.55806019,104700.0,104690.0,0.6851]
[1762714860780,0.14263749,104700.0,104690.0,0.4198418]
[1762714861086,0.23817019,104700.0,104690.0,0.7806418]
[1762714861585,0.77362616,104700.0,104690.0,0.003]
[1762714861973,0.4154318,104690.0,104680.0,0.00014346]
[1762714862182,1.26190777,104690.0,104680.0,0.00014346]
[1762714862378,1.37736151,104690.0,104680.0,0.00014346]
[1762714862574,0.1576,104670.0,104660.0,0.3213]
[1762714862781,0.75330315,104670.0,104660.0,0.3213]
[1762714862986,0.4154592,104660.0,104650.0,0.7776783]
[1762714864587,0.4154592,104660.0,104650.0,0.6821]
[1762714865088,0.4164592,104660.0,104650.0,0.6821]
[1762714865381,0.4164592,104660.0,104650.0,0.3213]
[1762714865590,0.0955783,104650.0,104640.0,0.39416346]
[1762714865780,0.54034427,104650.0,104640.0,0.00014346]
[1762714865982,0.57185652,104650.0,104640.0,0.00014346]
[1762714866484,0.35140225,104650.0,104640.0,0.87550096]
[1762714866684,0.44698055,104650.0,104640.0,0.87550096]
[1762714866990,0.45898055,104650.0,104640.0,0.87650096]
[1762714867184,0.36340225,104650.0,104640.0,0.87650096]
[1762714867380,0.45898055,104650.0,104640.0,0.78091346]
[1762714867689,0.45898055,104650.0,104640.0,0.00114346]
[1762714868083,0.45898055,104650.0,104640.0,0.16244346]
[1762714868388,0.44698055,104650.0,104640.0,0.32244346]
[1762714868592,0.44698055,104650.0,104640.0,0.32444346]
[1762714869385,0.44698055,104650.0,104640.0,0.16644346]
[1762714869581,0.44698055,104650.0,104640.0,0.00614346]
[1762714871488,0.80778055,104650.0,104640.0,0.00614346]
[1762714872296,0.80778055,104650.0,104640.0,0.10173096]
[1762714872892,0.80778055,104650.0,104640.0,0.00614346]
[1762714873694,0.80778055,104650.0,104640.0,0.10173096]
[1762714874194,0.80778055,104650.0,104640.0,0.42303096]
[1762714875379,0.78482896,104650.0,104640.0,0.00614346]
[1762714875684,0.90970493,104650.0,104640.0,0.00614346]
[1762714876191,0.31989,104630.0,104620.0,0.44471529]
[1762714876395,0.54036257,104630.0,104620.0,0.08391529]
[1762714876587,0.64847721,104630.0,104620.0,0.08391529]
[1762714877083,0.64847721,104630.0,104620.0,0.0336182]
[1762714877288,0.64847721,104630.0,104620.0,0.08891529]
[1762714877485,0.52360124,104630.0,104620.0,0.08891529]
[1762714877704,0.0955966,104630.0,104620.0,0.93074722]
[1762714878101,0.25333096,104640.0,104630.0,0.4168966]
[1762714878390,0.55374157,104640.0,104630.0,0.4505177]
[1762714878894,0.55374157,104640.0,104630.0,0.86174935]
[1762714879193,0.55374157,104640.0,104630.0,0.86574935]
[1762714879792,0.55374157,104640.0,104630.0,0.77015275]
[1762714880099,1.10417135,104640.0,104630.0,0.0376211]
[1762714880290,1.10417135,104640.0,104630.0,0.0406211]
[1762714880490,0.99705157,104640.0,104630.0,0.4575177]
[1762714881587,0.99705157,104640.0,104630.0,0.50794935]
[1762714882499,0.99705157,104640.0,104630.0,0.41235275]
[1762714882703,1.10417135,104640.0,104630.0,0.0406211]
[1762714882890,1.10417135,104640.0,104630.0,1.1e-06]
[1762714883102,1.06974013,104640.0,104630.0,1.1e-06]
[1762714883296,0.4154867,104630.0,104620.0,0.05050608]
[1762714883600,1.37660916,104630.0,104620.0,7.443e-05]
[1762714883996,1.37660916,104630.0,104600.0,0.42831467]
[1762714883997,0.4155049,104610.0,104600.0,0.3608]
[1762714884186,0.52262468,104610.0,104600.0,0.3608]
[1762714884390,0.90764348,104610.0,104600.0,0.5211]
[1762714884596,0.90764348,104610.0,104600.0,0.3608]
[1762714885089,0.143288,104610.0,104600.0,0.875394]
[1762714885296,6.942e-05,104610.0,104600.0,0.94290867]
[1762714885598,3.46e-06,104620.0,104610.0,0.4169149]
[1762714885796,3.46e-06,104620.0,104610.0,0.95210132]
[1762714885998,0.4563646,104670.0,104660.0,0.38292]
[1762714886201,0.31019,104660.0,104640.0,0.45123]
[1762714886498,0.4057683,104650.0,104640.0,0.7488775]
[1762714886801,0.54858473,104650.0,104640.0,0.7488775]
[1762714887598,0.91038473,104650.0,104640.0,0.29349]
[1762714887794,0.91038473,104650.0,104640.0,0.1508]
[1762714888105,0.91038473,104650.0,104640.0,0.001]
[1762714888399,0.2558775,104640.0,104630.0,0.74902306]
[1762714889601,0.4057775,104640.0,104630.0,0.74902306]
[1762714889898,0.51289728,104640.0,104630.0,0.65643346]
[1762714890105,1.07326792,104640.0,104630.0,0.00314346]
[1762714891206,1.07326792,104640.0,104630.0,0.00014346]
[1762714891409,1.07526792,104640.0,104630.0,0.00014346]
[1762714892602,0.91232814,104640.0,104630.0,0.29263346]
[1762714892815,1.26248814,104640.0,104630.0,0.29263346]
[1762714893122,0.91632814,104640.0,104630.0,0.38823006]
[1762714893813,0.91332814,104640.0,104630.0,0.38823006]
[1762714894119,0.40062814,104640.0,104630.0,0.74903006]
[1762714894319,0.24033814,104640.0,104630.0,0.74903006]
[1762714894515,0.14475064,104640.0,104630.0,0.74903006]
[1762714894915,0.24033814,104640.0,104630.0,0.74903006]
[1762714895622,0.14475064,104640.0,104630.0,0.74903006]
[1762714895921,0.23933824,104640.0,104630.0,0.74903006]
[1762714896314,0.23933824,104640.0,104630.0,0.75003006]
[1762714896513,0.10932242,104640.0,104630.0,0.75003006]
[1762714896814,0.10932242,104640.0,104630.0,0.75203006]
[1762714897221,0.20491002,104640.0,104630.0,0.75203006]
[1762714897620,0.20491002,104640.0,104630.0,0.65643346]
[1762714897822,0.36520002,104640.0,104630.0,0.65643346]
[1762714898014,0.51510002,104640.0,104630.0,0.65643346]
[1762714898320,0.51510002,104640.0,104630.0,0.75203016]
[1762714898529,0.26961242,104640.0,104630.0,0.75203016]
[1762714899008,0.10932242,104640.0,104630.0,0.75203016]
[1762714899212,0.10932242,104640.0,104630.0,0.75103016]
[1762714899619,0.20491002,104640.0,104630.0,0.75103016]
[1762714899920,0.36520002,104640.0,104630.0,0.75203016]
[1762714901114,0.51510002,104640.0,104630.0,0.65643346]
[1762714901416,0.51510002,104640.0,104630.0,0.75203016]
[1762714902420,0.41951242,104640.0,104630.0,0.75203016]
[1762714903213,0.10932242,104640.0,104630.0,0.75203016]
[1762714903722,0.20491002,104640.0,104630.0,0.75203016]
[1762714904323,0.36520002,104640.0,104630.0,0.80259619]
[1762714904524,0.51510002,104640.0,104630.0,0.80259619]
[1762714904726,0.51510002,104640.0,104630.0,0.70699949]
[1762714904921,0.51510002,104640.0,104630.0,0.65643346]
[1762714905320,0.51510002,104640.0,104630.0,0.75203016]
[1762714905825,0.51510002,104640.0,104630.0,0.80259619]
[1762714906024,0.10932242,104640.0,104630.0,0.80259619]
[1762714906826,0.20491002,104640.0,104630.0,0.80259619]
[1762714907022,0.50630002,104640.0,104630.0,0.80259619]
[1762714907229,0.50630002,104640.0,104630.0,0.70699949]
[1762714907619,0.64097598,104640.0,104630.0,0.56430949]
[1762714907821,1.02797598,104640.0,104630.0,0.00314346]
[1762714908026,1.02797598,104640.0,104630.0,0.09874016]
[1762714908329,1.02797598,104640.0,104630.0,0.37454016]
[1762714908715,1.02797598,104640.0,104630.0,0.37254016]
[1762714908920,1.02897598,104640.0,104630.0,0.00114346]
[1762714909115,1.97617598,104640.0,104630.0,0.00114346]
[1762714909427,0.3788867,104630.0,104620.0,0.05056603]
[1762714909633,0.70525301,104630.0,104620.0,0.05056603]
[1762714909815,0.84785512,104630.0,104620.0,0.05056603]
[1762714910725,0.84785512,104630.0,104620.0,0.05156603]
[1762714910927,0.84785512,104630.0,104620.0,0.003]
[1762714911222,0.4294459,104620.0,104610.0,0.05070949]
[1762714911423,1.27200186,104620.0,104610.0,0.05070949]
[1762714911623,1.41473658,104620.0,104610.0,0.05070949]
[1762714913029,1.41473658,104620.0,104610.0,0.0844271]
[1762714913624,1.41673658,104620.0,104610.0,0.03386107]
[1762714914019,1.41973658,104620.0,104610.0,0.03386107]
[1762714917725,0.368765,104610.0,104600.0,0.05056603]
[1762714917929,0.48902016,104600.0,104590.0,2e-08]
[1762714918133,0.48902016,104600.0,104580.0,0.15769664]
[1762714918134,0.3543625,104580.0,104570.0,0.06726664]
[1762714918328,1.24880846,104580.0,104570.0,0.06726664]
[1762714918625,0.0956516,104570.0,104560.0,0.06738762]
[1762714918830,0.7151716,104570.0,104560.0,0.06753108]
[1762714919028,0.7151716,104570.0,104560.0,0.00026444]
[1762714919029,0.85780375,104570.0,104560.0,0.00026444]
[1762714919831,0.85880375,104570.0,104560.0,0.00026444]
[1762714921542,0.14363215,104570.0,104560.0,0.44470524]
[1762714921737,0.14363215,104570.0,104560.0,1.48384494]
[1762714921923,0.7295716,104610.0,104600.0,0.34878]
[1762714922230,0.87294648,104610.0,104600.0,0.27042]
[1762714922636,0.87294648,104610.0,104600.0,0.34878]
[1762714923030,0.87694648,104610.0,104600.0,0.4444042]
[1762714923432,0.87294648,104610.0,104600.0,0.34878]
[1762714923630,0.87294648,104610.0,104600.0,0.34978]
[1762714923631,0.51814648,104610.0,104600.0,0.34978]
[1762714924334,0.3687741,104600.0,104590.0,0.27056346]
[1762714924630,0.51258025,104600.0,104590.0,0.36619666]
[1762714925329,0.51258025,104600.0,104590.0,0.27056346]
[1762714925732,0.51258025,104600.0,104590.0,0.27156346]
[1762714926128,0.51258025,104600.0,104590.0,0.36719656]
[1762714926832,0.51258025,104600.0,104590.0,0.36919656]
[1762714927333,0.28248615,104600.0,104590.0,0.36919656]
[1762714927542,0.14380615,104600.0,104590.0,0.72999656]
[1762714927833,1.07267611,104600.0,104590.0,0.00314346]
[1762714928038,0.41695615,104600.0,104590.0,0.36919656]
[1762714928340,0.87338015,104600.0,104590.0,0.27356346]
[1762714928536,0.87338015,104600.0,104590.0,0.36919656]
[1762714928834,0.51258015,104600.0,104590.0,0.63436346]
[1762714929937,0.87338015,104600.0,104590.0,0.27156346]
[1762714930530,0.87338015,104600.0,104590.0,0.36719656]
[1762714930930,0.87338015,104600.0,104590.0,0.36919656]
[1762714931131,0.87338015,104600.0,104590.0,0.27356346]
[1762714931332,0.87338015,104600.0,104590.0,0.36919656]
[1762714931642,0.87338015,104600.0,104590.0,0.27056346]
[1762714932033,0.87338015,104600.0,104590.0,0.36619666]
[1762714932537,0.51258015,104600.0,104590.0,0.36619666]
[1762714937834,0.51258015,104600.0,104590.0,0.41668428]
[1762714939837,1.51146015,104600.0,104590.0,1.08e-06]
[1762714940046,1.51146015,104600.0,104570.0,0.06725697]
[1762714940047,0.3973123,104580.0,104570.0,0.06725697]
[1762714940339,0.3688014,104570.0,104560.0,0.06737795]
[1762714940540,0.7296014,104570.0,104560.0,0.06737795]
[1762714940746,0.87353941,104570.0,104560.0,0.06737795]
[1762714942042,0.87353941,104570.0,104560.0,0.07137795]
[1762714942540,0.87353941,104570.0,104560.0,0.00412098]
[1762714942940,0.87453941,104570.0,104560.0,0.01012098]
[1762714943629,0.4479606,104560.0,104550.0,3e-08]
[1762714943837,0.3688198,104550.0,104540.0,0.00448786]
[1762714944036,0.7296198,104550.0,104540.0,0.00448786]
[1762714944336,1.00700251,104550.0,104540.0,0.00448786]
[1762714944539,1.00712309,104550.0,104540.0,0.00448786]
[1762714944939,1.01012309,104550.0,104540.0,0.00448786]
[1762714945640,0.3905389,104540.0,104530.0,0.00014346]
[1762714945849,1.0973389,104540.0,104530.0,0.00014346]
[1762714946042,1.2412146,104540.0,104530.0,0.00014346]
[1762714946744,0.3722272,104520.0,104510.0,0.08491512]
[1762714946949,0.3495764,104510.0,104500.0,0.9975914]
[1762714947248,0.49327121,104510.0,104500.0,0.78312512]
[1762714947542,0.49327121,104510.0,104500.0,0.70476512]
[1762714947847,0.3876655,104500.0,104490.0,0.00507514]
[1762714948045,0.3495947,104490.0,104480.0,0.11875248]